bitfinex/quotes_SOLUSD_20250903
["timestamp","ask_amount","ask_price","bid_price","bid_amount"]
[1756868989850,0.7,211.98,211.96,3.50174273]
[1756868990046,0.06,212.02,211.97,3.50174273]
[1756868990251,2.80598425,211.99,211.95,3.50174273]
[1756868990445,0.06,212.02,211.96,3.50174273]
[1756868990669,2.80598425,212.0,211.96,4.71783182]
[1756868990861,0.7,211.99,211.96,8.21957455]
[1756868991173,0.7,211.99,211.97,3.50174273]
[1756868991458,0.7,211.98,211.97,3.50174273]
[1756868991641,0.7,211.98,211.95,3.50174273]
[1756868991851,0.7,211.98,211.96,3.50174273]
[1756868992160,0.7,211.98,211.95,3.50174273]
[1756868992361,0.7,211.98,211.96,3.50174273]
[1756868992561,0.7,211.98,211.95,3.50174273]
[1756868992742,2.80598425,211.99,211.96,3.50174273]
[1756868992945,0.7,211.97,211.94,4.71830556]
[1756868993147,0.7,211.97,211.95,3.50016055]
[1756868993452,3.50598425,211.99,211.95,3.50016055]
[1756868993657,0.34432314,212.02,211.95,3.50016055]
[1756868993658,0.7,211.98,211.95,3.50016055]
[1756868994553,0.34432314,212.02,211.95,3.50016055]
[1756868994554,0.7,212.0,211.95,8.87811593]
[1756868994746,3.50598425,211.99,211.95,4.71795538]
[1756868995055,0.7,211.98,211.95,8.21811593]
[1756868995255,0.7,211.98,211.95,4.71795538]
[1756868995958,0.7,211.98,211.95,8.21811593]
[1756868996170,0.7,211.98,211.95,4.71795538]
[1756868996362,0.7,211.98,211.95,84.41795538]
[1756868996747,0.06,212.02,211.97,2.80598425]
[1756868996952,0.06,212.02,211.98,3.46598425]
[1756868997347,0.06,212.02,211.98,0.66]
[1756868997846,0.06,212.02,211.98,5.37723471]
[1756868998361,0.06,212.02,211.98,8.87191485]
[1756868998561,0.06,212.02,211.99,0.66]
[1756868998779,0.06,212.02,211.98,11.0178991]
[1756868998944,0.06,212.02,211.98,8.87191485]
[1756869001074,3.50598425,212.01,211.98,3.49468014]
[1756869001261,0.7,212.0,211.97,79.7]
[1756869001463,0.7,211.99,211.97,79.7]
[1756869001665,0.7,211.99,211.91,37.79725443]
[1756869001666,5.07635601,211.98,211.92,0.66]
[1756869001971,4.37635601,211.96,211.92,3.49400356]
[1756869002156,4.37635601,211.96,211.9,5.03635601]
[1756869002157,5.07635601,211.96,211.9,5.03635601]
[1756869002349,5.07635601,211.96,211.9,13.24948504]
[1756869002553,5.07635601,211.96,211.91,3.49400356]
[1756869002849,5.07635601,211.96,211.91,4.15400356]
[1756869003055,4.37635601,212.0,211.94,4.37635601]
[1756869003275,5.07635601,212.01,211.95,4.37635601]
[1756869003575,4.37635601,212.0,211.94,5.03635601]
[1756869003956,4.37635601,212.0,211.94,0.66]
[1756869004154,0.7,212.01,211.94,4.15400356]
[1756869004355,4.37635601,212.0,211.94,4.15400356]
[1756869004969,4.37635601,212.0,211.95,4.71809389]
[1756869005162,4.37635601,212.0,211.96,0.66]
[1756869005367,4.37635601,212.01,211.96,0.66]
[1756869005675,0.06,212.02,211.98,4.37635601]
[1756869005849,0.06,212.02,211.99,0.66]
[1756869007098,0.06,212.02,212.0,4.71698113]
[1756869008767,4.37635601,212.01,211.96,3.48962765]
[1756869008969,5.07635601,212.01,211.97,0.66]
[1756869009174,5.07635601,212.0,211.96,8.20740097]
[1756869009560,0.7,212.0,211.96,8.20740097]
[1756869009758,0.7,212.0,211.96,8.20937837]
[1756869011381,0.7,212.0,211.97,3.49160505]
[1756869011579,0.7,212.0,211.97,8.2092516]
[1756869011782,4.37635601,212.01,211.98,0.66]
[1756869012103,0.06,212.02,211.99,0.66]
[1756869012285,0.06,212.02,212.0,3.49753941]
[1756869012461,0.06,212.02,211.99,0.66]
[1756869012985,0.06,212.02,211.98,4.37635601]
[1756869013189,0.06,212.02,211.99,8.21464189]
[1756869013487,0.06,212.02,212.0,3.49743825]
[1756869013659,0.06,212.02,212.01,4.37635601]
[1756869013858,0.06,212.02,212.01,8.53495825]
[1756869014278,0.06,212.02,212.01,3.49860224]
[1756869014480,0.06,212.02,212.01,4.15860224]
[1756869014859,0.06,212.02,212.01,8.53495825]
[1756869015164,0.06,212.02,212.01,13.25171689]
[1756869015480,0.06,212.02,212.01,8.87536088]
[1756869016159,0.06,212.02,212.01,13.25171689]
[1756869016875,0.06,212.02,212.01,8.87536088]
[1756869017795,0.06,212.02,212.01,8.21536088]
[1756869019588,0.06,212.02,212.01,13.25171689]
[1756869020205,0.06,212.02,212.01,13.25596355]
[1756869021625,0.06,212.02,212.01,12.59596355]
[1756869021984,0.06,212.02,212.01,8.21960754]
[1756869022896,0.06,212.02,212.01,4.71675864]
[1756869023101,0.06,212.02,212.01,8.22346821]
[1756869025187,0.76,212.02,212.01,8.22346821]
[1756869025582,0.76,212.02,212.01,3.50670957]
[1756869025879,5.13635601,212.02,212.01,3.50670957]
[1756869026310,0.76,212.02,212.01,3.50670957]
[1756869026486,0.06,212.02,212.01,3.50670957]
[1756869026684,0.06,212.02,212.01,8.22346821]
[1756869027291,0.76,212.02,212.01,3.50670957]
[1756869027896,0.06,212.02,212.01,8.22346821]
[1756869028295,0.76,212.02,212.01,8.22346821]
[1756869029209,0.76,212.02,212.01,3.50670957]
[1756869030991,5.13635601,212.02,212.01,3.50670957]
[1756869031302,0.76,212.02,212.01,3.50670957]
[1756869031499,0.06,212.02,212.01,3.50670957]
[1756869031897,0.06,212.02,212.01,8.22346821]
[1756869032497,0.06,212.02,212.01,8.88346821]
[1756869034107,0.06,212.02,212.01,13.25982422]
[1756869035531,0.06,212.02,212.01,8.22346821]
[1756869036923,0.76,212.02,212.01,3.50670957]
[1756869037342,0.76,212.02,212.01,3.51053619]
[1756869037634,0.06,212.02,212.01,3.51053619]
[1756869039337,0.06,212.02,212.01,13.26365084]
[1756869040209,1e-08,212.05,212.01,118.82281731]
[1756869040415,1e-08,212.05,212.04,4.37635601]
[1756869040597,1e-08,212.05,212.04,40.49053619]
[1756869040957,1e-08,212.05,212.04,45.5268922]
[1756869041118,1e-08,212.07,212.04,64.59450978]
[1756869041325,1e-08,212.07,212.06,43.97195002]
[1756869041545,1e-08,212.07,212.06,84.46248621]
[1756869041845,1e-08,212.07,212.06,85.15248621]
[1756869043247,1e-08,212.07,212.06,90.62402051]
[1756869044118,1e-08,212.07,212.06,89.86813272]
[1756869044344,1e-08,212.07,212.06,90.02813272]
[1756869046747,0.06,212.08,212.07,93.295594]
[1756869047052,0.06,212.08,212.07,101.8724862]
[1756869047225,0.06,212.08,212.07,106.58791035]
[1756869047429,0.06,212.1,212.08,13.59559401]
[1756869047658,0.06,212.1,212.08,59.27248621]
[1756869048744,0.06,212.1,212.08,13.29209401]
[1756869048947,0.75,212.1,212.08,8.225738]
[1756869049127,0.75,212.1,212.08,3.51053619]
[1756869049128,0.89,212.09,212.08,3.51053619]
[1756869050960,5.26635601,212.09,212.08,3.51053619]
[1756869051332,0.89,212.09,212.08,3.51053619]
[1756869052456,5.26635601,212.09,212.08,3.51053619]
[1756869052641,5.26635601,212.09,212.04,37.1]
[1756869052840,5.06635601,212.08,212.05,3.51053619]
[1756869053044,5.06635601,212.07,212.03,37.1]
[1756869053249,0.69,212.06,212.04,3.49954652]
[1756869053451,4.37635601,212.06,212.05,3.49954652]
[1756869053757,4.37635601,212.06,212.02,3.50058217]
[1756869054046,0.69,212.05,212.03,3.50058217]
[1756869054256,0.69,212.04,212.0,4.71698113]
[1756869054454,4.37635601,212.06,212.01,3.50110257]
[1756869054667,0.69,212.03,212.02,3.50110257]
[1756869055231,0.69,212.03,212.02,3.50118132]
[1756869055647,5.06635601,212.06,212.02,3.50118132]
[1756869055947,0.69,212.05,212.03,3.50118132]
[1756869056148,0.69,212.05,212.01,4.71666559]
[1756869056380,0.69,212.04,212.02,3.50142593]
[1756869056582,0.69,212.04,212.03,3.50142593]
[1756869056877,4.37635601,212.04,212.0,3.50142593]
[1756869057063,4.71565269,212.06,211.98,4.37635601]
[1756869057064,4.37635601,212.03,212.01,3.50142593]
[1756869057269,4.37635601,212.03,211.98,4.71741199]
[1756869057465,0.69,212.02,211.99,3.50225809]
[1756869057670,4.37635601,212.03,212.0,3.50225809]
[1756869057896,0.69,212.01,211.98,4.71741199]
[1756869058050,0.69,212.01,211.99,3.50222634]
[1756869058250,4.37635601,212.03,212.0,3.50222634]
[1756869058451,26.28432314,212.06,211.97,9.09399116]
[1756869058683,26.0,212.06,211.98,3.50181021]
[1756869058862,0.2,212.09,212.03,4.37635601]
[1756869059062,0.89,212.09,212.06,4.71564651]
[1756869059755,0.06,212.08,212.06,4.71564651]
[1756869059972,0.06,212.08,212.07,3.49969752]
[1756869061062,0.06,212.08,212.07,8.21512167]
[1756869064477,0.06,212.08,212.07,87.91512167]
[1756869064655,0.06,212.08,212.07,91.40318715]
[1756869065375,0.06,212.08,212.07,83.19969752]
[1756869065559,0.06,212.08,212.07,87.91512167]
[1756869065760,0.06,212.08,212.07,88.60512167]
[1756869066070,0.06,212.08,212.07,91.40318715]
[1756869066776,0.06,212.08,212.07,87.91512167]
[1756869067687,0.06,212.08,212.07,83.19969752]
[1756869068777,0.75,212.08,212.07,83.19969752]
[1756869069283,0.06,212.08,212.07,83.19969752]
[1756869069656,0.06,212.08,212.07,79.7]
[1756869069657,3.54806548,212.08,212.07,79.7]
[1756869070190,3.54806548,212.08,212.03,0.03]
[1756869070483,2.79806548,212.06,212.04,3.50123627]
[1756869070660,3.48806548,212.06,212.03,0.03]
[1756869070856,0.69,212.05,212.04,3.50044084]
[1756869071166,0.06,212.08,212.04,3.50044084]
[1756869071376,3.47806548,212.07,212.03,0.03]
[1756869071584,0.68,212.06,212.04,3.50046674]
[1756869071884,3.47806548,212.06,212.03,0.03]
[1756869072209,3.47806548,212.06,212.04,3.49945829]
[1756869072364,3.47806548,212.06,212.03,0.03]
[1756869072563,3.47806548,212.06,212.04,3.49963673]
[1756869072862,3.47806548,212.06,212.03,0.03]
[1756869073072,3.47806548,212.06,212.04,3.4989716]
[1756869073255,3.47806548,212.06,212.03,0.03]
[1756869073459,3.47806548,212.06,212.04,3.49825431]
[1756869073672,3.47806548,212.06,212.03,0.03]
[1756869073961,3.47806548,212.06,212.04,3.4981522]
[1756869074272,0.68,212.05,212.03,0.03]
[1756869074459,0.68,212.05,212.04,3.4971173]
[1756869074660,2.79806548,212.06,212.04,3.4971173]
[1756869074878,3.47806548,212.06,212.03,0.03]
[1756869075065,0.68,212.06,212.04,3.4970693]
[1756869075383,2.79806548,212.07,212.05,3.49738406]
[1756869075565,3.47806548,212.06,212.03,4.74629473]
[1756869075766,3.47806548,212.06,212.04,3.4974335]
[1756869075966,3.47806548,212.06,212.03,4.74629473]
[1756869076159,3.47806548,212.06,212.04,3.49743445]
[1756869076364,3.47806548,212.06,212.04,79.7]
[1756869076778,0.68,212.05,212.04,79.7]
[1756869076972,0.68,212.05,212.04,83.20011002]
[1756869077591,0.68,212.05,212.04,83.20186161]
[1756869078081,2.79806548,212.06,212.04,83.20186161]
[1756869078276,2.79806548,212.06,212.05,3.50186161]
[1756869078476,3.47806548,212.06,212.05,3.50186161]
[1756869079472,3.47806548,212.06,212.04,79.7]
[1756869079873,3.47806548,212.05,212.04,79.7]
[1756869080072,0.68,212.07,212.04,83.20341904]
[1756869080292,2.79806548,212.05,212.04,79.7]
[1756869080585,3.47806548,212.05,212.04,79.7]
[1756869081572,3.47806548,212.05,212.04,83.20330083]
[1756869081779,3.47806548,212.05,212.04,79.7]
[1756869081980,0.68,212.05,212.04,79.7]
[1756869082182,0.74,212.08,212.04,87.91909031]
[1756869082384,2.79806548,212.07,212.04,84.41608837]
[1756869083387,3.47806548,212.07,212.04,79.7]
[1756869083670,0.68,212.07,212.04,79.7]
[1756869083866,3.47806548,212.07,212.04,79.7]
[1756869084066,2.79806548,212.07,212.04,79.7]
[1756869084372,0.06,212.08,212.04,79.7]
[1756869084373,3.47806548,212.06,212.04,79.7]
[1756869084874,0.68,212.05,212.04,79.7]
[1756869085077,3.47806548,212.05,212.04,83.20537666]
[1756869085275,2.79806548,212.05,212.04,79.7]
[1756869086692,3.47806548,212.05,212.04,79.7]
[1756869088179,3.47806548,212.05,212.03,0.03]
[1756869088484,2.79806548,212.05,212.03,0.03]
[1756869088683,2.79806548,212.05,212.04,3.50782744]
[1756869092202,3.47806548,212.05,212.04,3.50782744]
[1756869092396,3.76238862,212.05,212.03,0.03]
[1756869092583,0.68,212.04,212.03,0.03]
[1756869092785,3.47806548,212.04,212.03,0.03]
[1756869093780,8.47847992,212.04,212.03,0.03]
[1756869093982,13.19560669,212.04,212.03,0.03]
[1756869094183,26.7912007,212.04,212.03,0.03]
[1756869096504,23.99313522,212.04,212.03,0.03]
[1756869096785,26.7912007,212.04,212.03,0.03]
[1756869097286,4.71712677,212.04,212.03,0.03]
[1756869097481,2.79806548,212.04,212.03,0.03]
[1756869098383,2.79806548,212.05,212.03,0.03]
[1756869098604,3.47806548,212.04,212.03,0.03]
[1756869099599,40.55806548,212.04,212.03,0.03]
[1756869100906,40.55806548,212.04,212.01,3.50844969]
[1756869100907,13.87991715,212.03,212.01,3.50844969]
[1756869101109,0.28432314,211.99,211.98,0.03]
[1756869101308,2.79806548,211.94,211.92,0.03]
[1756869101488,40.87238862,211.93,211.92,0.03]
[1756869102100,44.38227009,211.93,211.92,0.03]
[1756869104199,40.58988147,211.93,211.92,0.03]
[1756869104402,44.09794695,211.93,211.92,0.03]
[1756869104720,43.38794695,211.93,211.92,0.03]
[1756869105010,43.41129979,211.93,211.92,0.03]
[1756869105383,44.12129979,211.93,211.92,0.03]
[1756869105795,44.40562293,211.93,211.92,0.03]
[1756869107103,39.87991715,211.84,211.83,0.03]
[1756869107289,78.02991715,211.84,211.83,0.03]
[1756869107489,80.82798263,211.84,211.83,0.03]
[1756869107901,84.3678641,211.84,211.83,0.03]
[1756869108101,46.9278641,211.84,211.83,0.03]
[1756869108305,70.08227009,211.84,211.83,0.03]
[1756869109194,74.80281389,211.84,211.83,0.03]
[1756869109392,38.05281389,211.84,211.83,0.03]
[1756869109590,75.53281389,211.84,211.83,0.03]
[1756869112915,32.62227009,211.84,211.83,0.03]
[1756869113115,70.06227009,211.84,211.83,0.7]
[1756869113311,70.06227009,211.84,211.83,0.03]
[1756869114194,75.49281389,211.84,211.82,1e-08]
[1756869114390,75.49281389,211.84,211.77,0.03]
[1756869114391,13.59559401,211.79,211.77,0.03]
[1756869114595,39.87991715,211.79,211.78,0.03]
[1756869114806,26.28432314,211.74,211.66,0.7]
[1756869115011,39.87991715,211.74,211.66,0.7]
[1756869115313,78.06991715,211.74,211.66,0.7]
[1756869115632,18.60313649,211.72,211.66,0.7]
[1756869115797,56.08313649,211.72,211.66,0.7]
[1756869116128,58.88120197,211.72,211.66,0.7]
[1756869116495,0.28432314,211.72,211.66,0.7]
[1756869116701,40.56238862,211.72,211.67,0.67]
[1756869116897,54.86798263,211.72,211.66,0.03]
[1756869117121,13.87991715,211.71,211.66,0.03]
[1756869117302,29.08238862,211.67,211.66,0.03]
[1756869117508,66.56238862,211.67,211.66,0.03]
[1756869118108,26.0,211.71,211.66,0.7]
[1756869118300,2.79806548,211.69,211.66,0.7]
[1756869118500,37.5,211.68,211.66,0.03]
[1756869118702,2.79806548,211.67,211.66,0.03]
[1756869119102,40.29806548,211.68,211.66,0.03]
[1756869119312,40.29806548,211.68,211.66,0.7]
[1756869119520,40.29806548,211.68,211.67,0.67]
[1756869119932,40.37806548,211.68,211.67,0.67]
[1756869120440,2.79806548,211.69,211.67,0.67]
[1756869120642,1.89335668,211.79,211.67,0.67]
[1756869120810,51.15559401,211.78,211.67,3.46806548]
[1756869121008,37.58,211.77,211.68,3.46806548]
[1756869121213,28.79806548,211.74,211.69,0.67]
[1756869121418,28.79806548,211.74,211.69,5.39369447]
[1756869121419,37.58,211.73,211.69,5.39369447]
[1756869121638,40.37806548,211.73,211.7,0.67]
[1756869121842,37.58,211.73,211.7,0.67]
[1756869122343,37.58,211.73,211.71,0.67]
[1756869122344,37.58,211.72,211.71,0.67]
[1756869122638,2.79806548,211.75,211.68,2.79806548]
[1756869122838,37.56,211.74,211.72,0.67]
[1756869123008,40.35806548,211.74,211.67,2.79806548]
[1756869123209,40.35806548,211.74,211.73,0.67]
[1756869123408,37.56,211.74,211.73,0.67]
[1756869123626,41.94746813,211.74,211.73,0.67]
[1756869124016,0.28432314,211.69,211.66,0.03]
[1756869124220,4.67179127,211.67,211.66,0.03]
[1756869124442,42.31179127,211.67,211.66,0.03]
[1756869124625,44.20568583,211.67,211.66,0.03]
[1756869125147,6.56568583,211.67,211.66,0.03]
[1756869125314,44.22568583,211.67,211.66,0.03]
[1756869125510,44.91568583,211.67,211.66,0.03]
[1756869125821,63.23561488,211.67,211.66,0.03]
[1756869126026,0.28432314,211.65,211.62,0.03]
[1756869126227,55.92738528,211.64,211.62,0.03]
[1756869126425,56.63738528,211.64,211.62,0.03]
[1756869127534,66.95050157,211.64,211.62,0.03]
[1756869127717,13.87991715,211.63,211.62,0.03]
[1756869127924,23.85549685,211.63,211.62,0.03]
[1756869128125,24.56549685,211.63,211.62,0.03]
[1756869128446,62.26549685,211.63,211.62,0.03]
[1756869129529,66.99072484,211.63,211.62,0.03]
[1756869130134,66.97072484,211.63,211.62,0.03]
[1756869130534,29.29072484,211.63,211.62,0.03]
[1756869130741,66.97072484,211.63,211.62,0.03]
[1756869131044,29.29072484,211.63,211.62,0.03]
[1756869131243,24.56549685,211.63,211.62,0.03]
[1756869131857,29.29072484,211.63,211.62,0.03]
[1756869132027,66.97072484,211.63,211.62,1e-08]
[1756869132636,66.95072484,211.63,211.62,1e-08]
[1756869133551,39.87991715,211.61,211.6,0.03]
[1756869133748,92.24117144,211.61,211.6,0.03]
[1756869133923,92.92117144,211.61,211.6,0.03]
[1756869134424,13.87991715,211.6,211.58,0.03]
[1756869134624,61.49549685,211.59,211.58,0.03]
[1756869134921,39.59559401,211.55,211.5,0.69]
[1756869135120,9.9755797,211.51,211.5,0.69]
[1756869135356,47.6355797,211.51,211.43,9.9755797]
[1756869135541,9.9755797,211.49,211.43,9.9755797]
[1756869135840,37.66,211.51,211.48,9.9755797]
[1756869135841,37.64,211.5,211.48,9.9755797]
[1756869136025,37.66,211.51,211.49,10.6655797]
[1756869136226,37.66,211.51,211.5,10.6655797]
[1756869136424,37.66,211.51,211.5,0.69]
[1756869137148,37.68,211.52,211.5,5.41813238]
[1756869137347,37.68,211.52,211.51,0.69]
[1756869137642,37.66,211.52,211.51,0.69]
[1756869137825,9.9755797,211.55,211.51,0.69]
[1756869138026,37.68,211.54,211.51,0.69]
[1756869138222,9.9755797,211.57,211.51,10.6655797]
[1756869138422,37.68,211.56,211.52,0.69]
[1756869138620,37.68,211.56,211.53,9.9755797]
[1756869138823,37.68,211.56,211.54,0.69]
[1756869139023,14.20689982,211.62,211.55,14.70259459]
[1756869139221,37.72,211.61,211.56,10.6655797]
[1756869139446,37.72,211.6,211.57,0.69]
[1756869139852,9.9755797,211.58,211.5,4.72813238]
[1756869140051,26.0,211.6,211.57,0.69]
[1756869140229,37.74,211.59,211.57,0.69]
[1756869140840,0.28432314,211.58,211.53,0.69]
[1756869141140,0.28432314,211.58,211.47,26.0]
[1756869141141,9.9755797,211.55,211.48,14.70415923]
[1756869141327,47.7155797,211.54,211.53,0.69]
[1756869141722,37.74,211.54,211.53,0.69]
[1756869142227,9.9755797,211.58,211.53,0.69]
[1756869142458,26.0,211.6,211.53,0.69]
[1756869142755,47.7355797,211.59,211.53,10.6655797]
[1756869142950,47.7355797,211.59,211.54,0.69]
[1756869143248,37.76,211.58,211.57,9.9755797]
[1756869143425,41.1955797,211.63,211.57,9.9755797]
[1756869143426,37.76,211.61,211.57,10.6655797]
[1756869143748,37.76,211.61,211.58,10.6655797]
[1756869143946,37.76,211.61,211.59,0.69]
[1756869144449,37.76,211.61,211.6,0.69]
[1756869144652,37.76,211.61,211.55,4.72701489]
[1756869144873,37.76,211.61,211.57,0.69]
[1756869145232,9.9755797,211.62,211.58,5.41634464]
[1756869145431,37.74,211.61,211.59,0.69]
[1756869145668,47.7155797,211.61,211.59,0.69]
[1756869146158,37.74,211.61,211.59,0.69]
[1756869146358,47.7155797,211.61,211.59,0.69]
[1756869146731,10.93990284,211.6,211.52,0.69]
[1756869147044,9.9755797,211.53,211.52,0.69]
[1756869147246,47.7955797,211.53,211.52,0.69]
[1756869147448,47.7955797,211.53,211.5,0.69]
[1756869147639,9.9755797,211.51,211.5,0.69]
[1756869148252,9.9755797,211.51,211.47,0.69]
[1756869148454,37.82,211.5,211.48,0.69]
[1756869148641,37.82,211.5,211.44,9.9755797]
[1756869148847,37.82,211.5,211.49,0.69]
[1756869150041,37.82,211.5,211.47,0.69]
[1756869150557,9.9755797,211.49,211.42,14.70550118]
[1756869150735,9.9755797,211.49,211.43,0.69]
[1756869151053,9.9755797,211.48,211.43,0.69]
[1756869151256,37.8,211.47,211.43,0.69]
[1756869151560,37.8,211.47,211.44,0.69]
[1756869152262,37.8,211.47,211.43,4.72956731]
[1756869152459,37.8,211.47,211.43,5.41956731]
[1756869152853,37.8,211.47,211.43,0.69]
[1756869153056,9.9755797,211.46,211.41,0.1]
[1756869153251,9.9755797,211.46,211.42,0.69]
[1756869153448,47.7755797,211.47,211.43,0.69]
[1756869154155,9.9755797,211.46,211.41,4.83009603]
[1756869154369,9.9755797,211.46,211.42,0.69]
[1756869155564,26.0,211.42,211.41,0.1]
[1756869155743,73.7155797,211.42,211.41,0.1]
[1756869155947,37.76,211.42,211.41,0.79]
[1756869156156,9.9755797,211.43,211.41,0.1]
[1756869156352,26.0,211.47,211.41,0.1]
[1756869156353,37.74,211.42,211.41,0.79]
[1756869156551,37.74,211.42,211.41,0.1]
[1756869157153,47.7155797,211.42,211.41,0.1]
[1756869157354,37.74,211.42,211.41,0.1]
[1756869158546,37.72,211.42,211.41,0.1]
[1756869159776,37.72,211.42,211.41,5.52014521]
[1756869160172,37.72,211.42,211.41,4.83014521]
[1756869161650,9.9755797,211.42,211.41,0.1]
[1756869161850,10.6455797,211.42,211.41,0.1]
[1756869162354,10.92990284,211.42,211.41,0.1]
[1756869163869,0.28432314,211.42,211.41,0.1]
[1756869164073,10.25990284,211.42,211.41,0.1]
[1756869164364,47.7355797,211.42,211.41,0.1]
[1756869164673,74.4055797,211.42,211.41,0.1]
[1756869164858,74.68990284,211.42,211.41,0.1]
[1756869165772,64.71432314,211.42,211.41,0.1]
[1756869165962,74.68990284,211.42,211.41,0.1]
[1756869166874,64.04432314,211.42,211.41,0.1]
[1756869167067,74.01990284,211.42,211.41,0.1]
[1756869167564,68.44581334,211.42,211.41,0.1]
[1756869168658,26.0,211.42,211.41,0.1]
[1756869168858,42.1014902,211.42,211.41,0.1]
[1756869170459,37.7,211.42,211.41,0.1]
[1756869170672,42.1014902,211.42,211.41,0.1]
[1756869171579,69.05581334,211.42,211.41,0.1]
[1756869172467,73.78573482,211.42,211.41,0.1]
[1756869173172,69.38424462,211.42,211.41,0.1]
[1756869173363,64.65432314,211.42,211.41,0.1]
[1756869173564,69.05581334,211.42,211.41,0.1]
[1756869173763,68.34581334,211.42,211.41,0.1]
[1756869174958,63.66,211.42,211.41,0.1]
[1756869175477,68.0614902,211.42,211.41,0.1]
[1756869176152,26.0,211.42,211.41,0.1]
[1756869176357,42.0614902,211.42,211.41,0.1]
[1756869176787,38.33,211.42,211.41,0.1]
[1756869176965,42.7314902,211.42,211.41,0.1]
[1756869177165,42.0614902,211.42,211.41,0.1]
[1756869178794,37.66,211.42,211.41,0.1]
[1756869178984,42.0614902,211.42,211.41,0.1]
[1756869179491,47.74573482,211.42,211.41,0.1]
[1756869179964,47.07573482,211.42,211.41,0.1]
[1756869180672,37.66,211.42,211.41,0.78]
[1756869180870,42.0614902,211.42,211.41,0.78]
[1756869181068,37.66,211.42,211.41,0.78]
[1756869181276,42.0614902,211.42,211.41,0.78]
[1756869181674,14.26559401,211.5,211.41,5.51012366]
[1756869181873,4.4014902,211.47,211.42,0.68]
[1756869182079,4.4014902,211.48,211.42,5.0814902]
[1756869182264,0.67,211.53,211.43,0.68]
[1756869182265,37.68,211.47,211.43,0.68]
[1756869182692,42.0814902,211.47,211.44,0.68]
[1756869182864,42.0814902,211.47,211.45,0.68]
[1756869183066,4.4014902,211.46,211.41,79.8]
[1756869183265,0.28432314,211.49,211.42,0.68]
[1756869183266,4.4014902,211.43,211.42,0.68]
[1756869183466,37.68,211.43,211.42,0.68]
[1756869183888,37.68,211.43,211.41,79.8]
[1756869184093,37.68,211.43,211.41,80.48]
[1756869184297,37.68,211.43,211.42,0.68]
[1756869185892,37.68,211.43,211.41,79.8]
[1756869186103,37.68,211.43,211.41,0.1]
[1756869186287,37.68,211.43,211.42,0.68]
[1756869186482,37.68,211.43,211.41,0.1]
[1756869186704,2.81589187,211.42,211.41,0.1]
[1756869187386,3.77021501,211.42,211.41,0.1]
[1756869188003,8.50013649,211.42,211.41,0.1]
[1756869189309,3.10021501,211.42,211.41,0.1]
[1756869189902,43.32424462,211.42,211.41,0.1]
[1756869190082,46.14013649,211.42,211.41,0.1]
[1756869192610,48.03636536,211.42,211.41,0.1]
[1756869192991,46.14013649,211.42,211.41,0.1]
[1756869193191,48.03636537,211.42,211.41,0.1]
[1756869193417,61.63195938,211.42,211.41,0.1]
[1756869194288,40.49055202,211.42,211.41,0.1]
[1756869194504,43.30644389,211.42,211.41,0.1]
[1756869194914,48.03636537,211.42,211.41,0.1]
[1756869195292,61.63195938,211.42,211.41,0.1]
[1756869196718,58.81606751,211.42,211.41,0.1]
[1756869196917,61.63195938,211.42,211.41,0.1]
[1756869197920,40.74021501,211.42,211.41,0.1]
[1756869198121,45.47013649,211.42,211.41,0.1]
[1756869198426,46.16013649,211.42,211.41,0.1]
[1756869199116,59.7557305,211.42,211.41,0.1]
[1756869201502,61.65213918,211.42,211.41,0.1]